Cogmind - Beta 16 @@@ ROGUE MODE // 2025.12.08 @ 17:56:36 // Winter2019/RPGLIKE Player: Gallgagger Result: Destroyed by S-27 Virus with Autogun Performance ------------- Evolutions (5) 2500 Regions Visited (18) 3600 Robots Destroyed (609) 3045 Value Destroyed (28950) 28950 Prototype IDs (69) 1380 Alien Tech Used (0) 0 Bonus (29858) 29858 TOTAL SCORE: 69333 Bonus ------- Triggered High Security 500 High Alert Combat Kills 5579 Follower Combat Kills 970 Awakened Behemoth Slayer 1000 Met Data Miner 300 Met Imprinter 300 Was Imprinted 300 Met Warlord at Base 500 MAIN.C Attacked Warlord 500 Warlord Defense Kills 21020 Friendly Fire -1111 Cogmind --------- Core Integrity 0/1200 Matter 267/300 Energy 700/700 System Corruption 4% Temperature Cool (0) Movement Hovering (34) Location -5/Warlord Parts ------- > --- POWER (2) -------- Vortex Chain Reactor > --- PROPULSION (5) --- Cooled Gravmag System Cooled Gravmag System Cooled Gravmag System Cooled Gravmag System Cooled Antigrav System > --- UTILITY (10) ----- Advanced Gravity Neutralizer Improved Signal Interpreter Experimental Core Analyzer Experimental Armor Integrity Analyzer Advanced Particle Charger Advanced Kinecellerator Weapon Cycler Centrium Light Armor Plating Centrium Light Armor Plating > --- WEAPON (4) ------- Vortex Rail Enhanced Coil Gun CR-A16's Behemoth Slayer > --- INVENTORY (6) ---- Vortex Shotgun (8) Vortex Rail (11) Peak State ------------ > --- POWER ------------ Vortex Chain Reactor > --- PROPULSION ------- Cooled Gravmag System Cooled Gravmag System Cooled Gravmag System Cooled Gravmag System Cooled Antigrav System > --- UTILITY ---------- Advanced Gravity Neutralizer Improved Signal Interpreter Experimental Core Analyzer Experimental Armor Integrity Analyzer Improved Particle Charger Advanced Particle Charger Advanced Kinecellerator Weapon Cycler Centrium Light Armor Plating Centrium Light Armor Plating > --- WEAPON ----------- Vortex Shotgun Vortex Rail Enhanced Coil Gun CR-A16's Behemoth Slayer > --- INVENTORY -------- Protomatter Protomatter Zionite Phaser-S Vortex Shotgun Vortex Rail [Rating: 167] Favorites ----------- Power Light Neutrino Core Engine Light Ion Engine Power Core Light Neutrino Core Reactor Cold Fusion Reactor Propulsion Cooled Gravmag System Wheel Compact Wheel Hover Unit Cooled Gravmag System Flight Unit Flight Unit Utility Weapon Cycler Device Weapon Cycler Storage High-capacity Matter Pod Processor Advanced Signal Interpreter Hackware Hacking Suite Protection Layered Medium Armor Plating Weapon Enhanced Coil Gun Energy Gun Plasma Rifle Energy Cannon Compact Ion Cannon Ballistic Gun Enhanced Coil Gun Ballistic Cannon Compact Linear Accelerator Slashing Weapon Tearclaws Piercing Weapon CR-A16's Behemoth Slayer Build | -11 -10 -10 -10 -9 -8 -7 -7 -7 -7 -6 -6 -6 -6 -6 -5 -5 -5 -5 ------- Run | Yrd Mat Min Exi Min Mat Fac Low Low Dat Pro Fac Low Low Zio Pro Fac Upp War Slots Evolved 17 | 3 3 . . 1 2 2 . 1 . . 1 . . 1 . 2 . 1 Power 1 | . . . . . . . . 1 . . . . . . . . . . Propulsion 4 | 1 . . . 1 . . . . . . . . . . . 1 . 1 Utility 9 | 1 3 . . . 2 1 . . . . 1 . . . . 1 . . Weapon 3 | 1 . . . . . 1 . . . . . . . 1 . . . . Parts Attached 125 | 7 9 1 . 3 18 26 5 7 . 1 12 . 3 3 . 12 . 18 Power 7 | 1 . 1 . . 1 2 . 1 . . . . . . . . . 1 Engine 1 | 1 . . . . . . . . . . . . . . . . . . Core 3 | . . 1 . . 1 1 . . . . . . . . . . . . Reactor 3 | . . . . . . 1 . 1 . . . . . . . . . 1 Propulsion 24 | 2 2 . . 3 5 2 . 3 . . 5 . . . . 1 . 1 Treads . | . . . . . . . . . . . . . . . . . . . Leg . | . . . . . . . . . . . . . . . . . . . Wheel 2 | 2 . . . . . . . . . . . . . . . . . . Hover 15 | . . . . . 4 2 . 3 . . 4 . . . . 1 . 1 Flight 7 | . 2 . . 3 1 . . . . . 1 . . . . . . . Utility 59 | 2 5 . . . 7 13 5 2 . 1 4 . 2 1 . 6 . 11 Device 24 | 2 1 . . . 3 7 3 . . . 1 . . . . 2 . 5 Storage 4 | . 3 . . . . . . . . . 1 . . . . . . . Processor 8 | . . . . . . 1 . . . . 1 . 1 1 . 1 . 3 Hackware 2 | . . . . . 1 1 . . . . . . . . . . . . Protection 21 | . 1 . . . 3 4 2 2 . 1 1 . 1 . . 3 . 3 Artifact . | . . . . . . . . . . . . . . . . . . . Weapon 35 | 2 2 . . . 5 9 . 1 . . 3 . 1 2 . 5 . 5 Energy Gun 19 | . 2 . . . 4 5 . . . . 1 . . 1 . 2 . 4 Energy Cannon 4 | . . . . . . 1 . . . . 2 . . . . 1 . . Ballistic Gun 9 | 2 . . . . 1 3 . 1 . . . . . . . 2 . . Ballistic Cannon 1 | . . . . . . . . . . . . . . . . . . 1 Launcher . | . . . . . . . . . . . . . . . . . . . Special Weapon . | . . . . . . . . . . . . . . . . . . . Impact Weapon . | . . . . . . . . . . . . . . . . . . . Slashing Weapon 1 | . . . . . . . . . . . . . 1 . . . . . Piercing Weapon 1 | . . . . . . . . . . . . . . 1 . . . . Special Melee Weapon . | . . . . . . . . . . . . . . . . . . . Unidentified Prototypes 43 | . . . . . 9 10 1 . . . 6 . . . . 5 . 12 Parts Lost 16 | . . 1 . . 6 3 1 . . . 1 1 . . . 1 . 2 Power 1 | . . 1 . . . . . . . . . . . . . . . . Propulsion 4 | . . . . . 2 2 . . . . . . . . . . . . Utility 9 | . . . . . 3 1 1 . . . 1 1 . . . 1 . 1 Weapon 2 | . . . . . 1 . . . . . . . . . . . . 1 Highest Loss Streak 2 | . . 1 . . 2 2 1 . . . 1 1 . . . 1 . 1 To Critical Strikes . | . . . . . . . . . . . . . . . . . . . Average Backups 2 | . . 1 1 1 2 1 2 2 3 3 3 3 3 3 3 2 2 4 Power . | . . . . . . . 1 . . . . . . . . . . . Propulsion . | . . . . . . . . . . . . 1 1 1 1 . . . Utility 1 | . . . 1 1 2 . . 1 2 2 2 1 1 1 1 . 1 . Weapon 1 | . . 1 . . . . 1 1 1 1 1 1 1 1 1 1 1 3 Tool/Special . | . . . . . . . . . . . . . . . . . . . Unused Backups 8 | . . 4 . . . 3 . . . . 1 . . . . . . . Power . | . . . . . . . . . . . . . . . . . . . Propulsion . | . . . . . . . . . . . . . . . . . . . Utility 3 | . . 1 . . . 2 . . . . . . . . . . . . Weapon 5 | . . 3 . . . 1 . . . . 1 . . . . . . . Tool/Special . | . . . . . . . . . . . . . . . . . . . Average Slot Usage (%) 96 | . 94 100 100 100 91 90 92 97 90 100 98 100 99 100 99 98 100 95 Engine 1 | . 13 5 . . . . . . . . . . . . . . . . Core 5 | . . 4 10 9 7 6 6 6 6 6 5 5 5 5 5 5 5 . Reactor 2 | . . . . . . . . 3 6 6 5 5 5 5 5 5 5 4 Wheel 1 | . 19 . . . . . . . . . . . . . . . . . Hover 15 | . . . . . 20 18 13 16 18 18 17 17 17 16 16 19 20 22 Flight 1 | . 6 20 20 20 . . . . . . . . . . . . . . Device 29 | . 26 20 20 19 22 32 32 31 31 31 30 35 35 33 33 31 25 24 Storage 3 | . 1 20 20 19 12 . . . . . . 5 5 5 5 5 5 . Processor 2 | . . . . . . . . . . . 3 5 5 5 5 5 5 11 Hackware 1 | . . . . . 1 8 . . . . . . . . . . . . Protection 10 | . . 10 10 9 6 7 18 18 18 18 15 5 5 5 5 6 15 9 Energy Gun 8 | . 9 10 10 9 10 13 13 8 2 6 5 5 4 5 5 3 5 8 Ballistic Gun 8 | . 17 10 10 9 5 2 6 9 6 12 11 11 11 10 10 10 10 4 Piercing Weapon 1 | . . . . . . . . . . . . . . 3 5 5 5 4 Peak Build Rating 167 | 9 12 14 14 16 43 72 75 95 95 95 108 108 108 112 117 133 125 167 Average Rating 81 | 6 9 12 14 14 34 53 72 87 84 94 98 107 107 110 115 124 125 152 On Entrance 69 | . 9 12 14 14 16 41 62 74 95 95 94 108 107 108 112 117 125 125 Avg Prop Armor Cover (%) 3 | . . . . . 3 . . . . . . . . . . . . . Naked Turns . | . . . . . . . . . . . . . . . . . . . Heaviest Build 86 | 8 18 20 20 20 36 43 45 63 63 63 62 58 58 61 61 75 74 86 Greatest Support 114 | 32 32 23 23 27 40 56 45 64 64 64 64 64 64 64 64 75 75 114 Greatest Overweight (x) 2 | . 2 . . . 1 . . . . . 1 . . . . . . 1 Average Overweight (x) . | . . . . . . . . . . . . . . . . . . . Largest Inventory Capacity 6 | 2 2 2 2 2 3 3 3 3 3 3 4 4 4 4 4 5 5 6 Average Capacity 3 | 2 2 2 2 2 2 3 3 3 3 3 3 4 4 4 4 4 5 5 Most Carried 5 | . 2 2 1 2 3 3 3 3 3 3 4 4 4 4 4 5 4 5 Average Carried 2 | . 1 1 1 1 2 1 2 2 3 3 3 3 3 4 4 4 2 4 Final Capacity 6 | 2 2 2 2 2 3 3 3 3 3 3 4 4 4 4 4 5 5 6 Final Carried 5 | . 2 1 1 2 1 3 3 3 3 3 4 3 4 4 4 5 2 2 Class Distribution -------------------- 25% | Hacker-Tank 21% | Hacker-Scout 12% | Mutant 11% | Hacker-Gunner 11% | Hacker-Mutant 8% | Scavenger-Mutant 3% | Scavenger-Gunner Dominant Class ---------------- Mutant | -10/Materials Scavenger-Mutant | -10/Mines Scavenger-Mutant | -10/Exiles Scavenger-Mutant | -9/Mines Mutant | -8/Materials Hacker-Mutant | -7/Factory Hacker-Tank | -7/Lower Caves Hacker-Tank | -7/Lower Caves Hacker-Tank | -7/Data Miner Hacker-Tank | -6/Proximity Caves Hacker-Tank | -6/Factory Hacker-Gunner | -6/Lower Caves Hacker-Gunner | -6/Lower Caves Hacker-Scout | -6/Zion Hacker-Scout | -5/Proximity Caves Hacker-Scout | -5/Factory Hacker-Scout | -5/Upper Caves Scavenger-Gunner | -5/Warlord Resources | -11 -10 -10 -10 -9 -8 -7 -7 -7 -7 -6 -6 -6 -6 -6 -5 -5 -5 -5 ----------- Run | Yrd Mat Min Exi Min Mat Fac Low Low Dat Pro Fac Low Low Zio Pro Fac Upp War Matter Collected 8755 | 278 787 98 . 105 704 692 268 242 . 863 878 516 473 30 168 1224 160 1269 Remotely . | . . . . . . . . . . . . . . . . . . . Salvage Created 27384 | 23 945 220 . 234 2555 3484 1041 251 . 2158 2181 648 1107 . 410 4310 456 7361 Parts 1328 | 4 51 16 . 23 131 123 39 27 . 104 137 23 54 . 17 201 29 349 Haulers Intercepted 21 | . 1 . . . 6 4 1 . . . 3 . . . . 6 . . Recyclers Shooed 7 | . . . . . 1 4 . . . . . . . . . 2 . . Parts Field Recycled . | . . . . . . . . . . . . . . . . . . . Retrieved Matter . | . . . . . . . . . . . . . . . . . . . Parts Self-Destructed 309 | . . . . . . . 40 51 . 103 . 23 51 . 19 . 22 . Prevented 2 | . . . . . . . 2 . . . . . . . . . . . Parts Restored . | . . . . . . . . . . . . . . . . . . . Kills | -11 -10 -10 -10 -9 -8 -7 -7 -7 -7 -6 -6 -6 -6 -6 -5 -5 -5 -5 ------- Run | Yrd Mat Min Exi Min Mat Fac Low Low Dat Pro Fac Low Low Zio Pro Fac Upp War Combat Hostiles Destroyed 559 | . 31 10 . 9 52 59 21 10 . 34 34 8 22 . 10 61 12 186 Guns 524 | . 30 10 . 9 52 52 21 10 . 33 34 8 22 . 9 57 12 165 AOE 25 | . . . . . . 1 . . . . . . . . . 4 . 20 Classes Destroyed 26 | 1 4 . . 1 7 5 . . . 1 1 . 1 . . . . 5 Worker 11 | . 1 . . . . 1 . . . . 8 . . . . 1 . . Builder 9 | . . . . . . 2 . . . . 1 . . . . 6 . . Tunneler 2 | 1 . . . . . 1 . . . . . . . . . . . . Hauler 21 | . 1 . . . 6 4 1 . . . 3 . . . . 6 . . Recycler 11 | . . . . . 1 3 . . . 1 1 . . . . 5 . . Mechanic 4 | . . . . . . . . . . . 1 . . . . 2 . 1 Operator 1 | . . . . . . 1 . . . . . . . . . . . . Watcher 5 | . . . . . 1 1 . . . 2 1 . . . . . . . Swarmer 77 | . 9 6 . 4 3 5 . 3 . 4 . 1 3 . 4 14 4 17 Cutter 5 | . . . . . 3 2 . . . . . . . . . . . . Grunt 253 | . 22 4 . 4 30 20 18 4 . 17 16 3 12 . 3 21 . 79 Brawler 21 | . . . . . . 2 . . . 2 . . 2 . 1 3 . 11 Duelist 18 | . . . . 1 3 1 . 1 . 1 . 1 1 . . 4 . 5 Protector 18 | . . . . . 1 2 . 1 . 1 1 . . . . 1 . 11 Sentry 41 | . . . . . 9 6 2 1 . 5 3 1 1 . 1 12 . . Demolisher 3 | . . . . . . . . . . . . . . . . . . 3 Specialist 8 | . . . . . . 2 . . . . 2 . . . . . . 4 Hunter 36 | . . . . . 2 7 . . . 2 6 2 . . . 3 4 10 Programmer 36 | . . . . . . 11 1 . . . 5 . . . . 2 1 16 Heavy 4 | . . . . . 1 1 . . . . 1 . . . . 1 . . Behemoth 5 | . . . . . . . . . . 2 . . 1 . 1 . . 1 Striker 5 | . . . . . . . . . . . . . . . . . . 5 Executioner 10 | . . . . . . . . . . . . . . . . . . 10 Packrat 1 | . . . . . . . 1 . . . . . . . . . . . Thief 2 | . . . . . . . . . . . . . 2 . . . . . Thug 9 | . . . . . . . . . . . . . . . . . 3 6 Bouncer 6 | . . . . . . . . . . . . . . . . . . 6 Wizard 1 | . . . . . . . . . . . . . . . . 1 . . Mutant 5 | . . . . . . . . . . . . . . . . . . 5 Knight 1 | . . . . . . . . . . . . . . . . . . 1 Best Kill Streak 38 | 1 6 3 . 4 8 11 7 4 . 6 12 4 9 . 4 15 4 38 Combat Bots Only 38 | . 6 3 . 4 8 9 7 4 . 6 7 4 9 . 4 15 4 38 Max Kills in Single Turn 6 | 1 2 1 . 2 2 2 2 1 . 3 3 2 2 . 2 6 2 4 Gunslinging 2 | . 1 . . 1 1 1 1 . . 2 . 1 1 . 1 1 1 2 Exploded 3 | . . . . . . 1 . . . . . . . . . 2 . 3 Melee . | . . . . . . . . . . . . . . . . . . . Uniques/NPCs Destroyed . | . . . . . . . . . . . . . . . . . . . Combat | -11 -10 -10 -10 -9 -8 -7 -7 -7 -7 -6 -6 -6 -6 -6 -5 -5 -5 -5 -------- Run | Yrd Mat Min Exi Min Mat Fac Low Low Dat Pro Fac Low Low Zio Pro Fac Upp War Hostile Shots Fired 2018 | . 121 50 . 39 237 316 102 7 . 234 189 34 26 . 32 178 37 416 Missed 830 | . 38 16 . 18 67 163 48 5 . 111 70 12 13 . 12 85 13 159 Hits 1188 | . 83 34 . 21 170 153 54 2 . 123 119 22 13 . 20 93 24 257 Melee 14 | . . . . . 5 3 . . . 1 . . 1 . . 3 . 1 Projectile 1174 | . 83 34 . 21 165 150 54 2 . 122 119 22 12 . 20 90 24 256 AOE 6 | . . . . . 3 1 . . . 1 . . . . . . . 1 Critical Strikes 45 | . . 1 . . 11 8 1 . . . 4 4 . . 2 4 . 10 Actively Blocked 2 | . . . . . . . . . . . . . . . . 2 . . Part Disruptions 1 | . . . . . . . . . . . 1 . . . . . . . Damage Taken 19684 | . 864 368 . 235 2843 2451 749 26 . 1482 2019 294 267 . 424 1819 376 5467 Core 13262 | . 720 296 . 173 2159 1495 476 9 . 915 1234 160 185 . 321 1188 207 3724 Absorbed by Shields 139 | . . . . . . . . . . . . . . . . . . 139 Redirected to Core 10924 | . 448 209 . 143 1711 1304 377 9 . 769 1097 160 185 . 254 852 175 3231 Redirected to Shielding 273 | . . 6 . 14 45 24 12 . . . . . . . . 172 . . Ignored by Resistances 1256 | . . . . . 176 155 54 2 . 150 165 22 17 . 28 121 29 337 Regen/Repaired (Parts) 48 | . . . . . 33 15 . . . . . . . . . . . . Core Remaining (%) 88 | 100 . . . 94 62 . . . . 100 . . . . 87 . . . Volleys Fired 1158 | 2 81 31 . 24 160 171 48 27 . 86 86 18 49 . 13 124 20 218 Largest 3 | 2 2 2 . 2 2 3 3 3 . 3 3 3 3 . 3 3 3 3 Hottest 225 | 40 70 70 . 70 106 225 180 140 . 140 195 140 140 . 140 155 120 165 Shots Fired 2840 | 4 162 62 . 49 316 397 111 58 . 257 252 54 107 . 39 332 60 580 Gun 2837 | 4 162 62 . 49 316 397 111 58 . 257 250 54 107 . 39 331 60 580 Cannon 3 | . . . . . . . . . . . 2 . . . . 1 . . Launcher . | . . . . . . . . . . . . . . . . . . . Special . | . . . . . . . . . . . . . . . . . . . Kinetic 1420 | 4 111 31 . 25 134 62 49 32 . 171 168 35 79 . 27 234 40 218 Thermal 952 | . 51 31 . 24 157 335 62 26 . 86 84 19 28 . 12 37 . . Explosive . | . . . . . . . . . . . . . . . . . . . Electromagnetic 25 | . . . . . 25 . . . . . . . . . . . . . Entropic 219 | . . . . . . . . . . . . . . . . . . 219 Phasic 224 | . . . . . . . . . . . . . . . . 61 20 143 Robot Hit Streak 70 | 2 27 21 . 12 29 32 34 28 . 44 29 36 39 . 57 39 33 70 Robot Miss Streak 6 | 1 2 3 . 4 3 6 2 1 . 3 3 1 1 . 1 3 1 4 Penetration Max 3 | . . . . . . 1 1 2 . 3 3 1 2 . . 3 1 2 Secondary Targets 136 | . 3 2 . 3 9 6 3 2 . 11 5 3 2 . 2 20 4 61 Max Gunslinging Chain 2 | . 1 1 . 1 1 1 2 1 . 2 1 1 1 . 1 2 2 2 Shots Hit Robots 2300 | 3 132 47 . 36 256 323 98 47 . 215 203 47 77 . 35 254 49 478 Core Hits 1276 | 1 53 17 . 15 110 205 64 20 . 102 116 20 40 . 16 132 18 347 Critical Kills 60 | . 1 . . . 1 . . 2 . 11 14 . 7 . 2 15 1 6 Critical Parts Destroyed 111 | . . 1 . . 1 1 4 1 . 18 25 6 8 . 2 17 1 26 Critical Strikes 252 | . 5 4 . . 14 16 6 5 . 40 47 7 17 . 8 38 4 41 Burn 60 | . 4 3 . . 12 15 2 2 . 7 8 1 1 . 3 2 . . Destroy 160 | . 1 1 . . 2 1 4 3 . 33 39 6 16 . 4 33 2 15 Impale 1 | . . . . . . . . . . . . . . . 1 . . . Detonate 18 | . . . . . . . . . . . . . . . . . . 18 Intensify 13 | . . . . . . . . . . . . . . . . 3 2 8 Melee Attacks 9 | . . . . . . . . . . . . . . . 5 . . 4 Impact . | . . . . . . . . . . . . . . . . . . . Slashing . | . . . . . . . . . . . . . . . . . . . Piercing 9 | . . . . . . . . . . . . . . . 5 . . 4 Sneak Attacks . | . . . . . . . . . . . . . . . . . . . Combat Hostiles . | . . . . . . . . . . . . . . . . . . . Follow-up Attacks . | . . . . . . . . . . . . . . . . . . . Damage Inflicted 81394 | 23 1638 645 . 474 4904 8541 2746 1351 . 4889 5031 1336 2185 . 929 10567 1994 34141 Guns 74389 | 23 1638 645 . 474 4790 8181 2746 1351 . 4889 4958 1336 2185 . 843 9071 1994 29265 Cannons 71 | . . . . . . . . . . . 40 . . . . 31 . . Explosions 6815 | . . . . . 114 360 . . . . . . . . . 1465 . 4876 Melee 86 | . . . . . . . . . . . . . . . 86 . . . Ramming 33 | . . . . . . . . . . . 33 . . . . . . . Kinetic 31546 | 23 1077 315 . 239 1774 1093 1244 792 . 3051 3212 948 1518 . 561 6776 1433 7490 Thermal 23894 | . 561 330 . 235 2600 7088 1502 559 . 1838 1786 388 667 . 282 1182 . 4876 Explosive 1364 | . . . . . . 360 . . . . . . . . . 1004 . . Electromagnetic 530 | . . . . . 530 . . . . . . . . . . . . . Impact . | . . . . . . . . . . . . . . . . . . . Slashing . | . . . . . . . . . . . . . . . . . . . Piercing 86 | . . . . . . . . . . . . . . . 86 . . . Entropic 16451 | . . . . . . . . . . . . . . . . . . 16451 Phasic 7490 | . . . . . . . . . . . . . . . . 1605 561 5324 Highest Corruption 6 | . 1 1 1 1 . 4 1 1 1 1 6 6 6 6 1 . . 4 Average Corruption 1 | . 1 1 1 1 . 2 1 1 1 1 2 6 6 6 1 . . 2 Corruption Purged 4 | . . . . . . 4 . . . . . . . . . . . . Corruption Blocked . | . . . . . . . . . . . . . . . . . . . Effects 110 | . 7 3 1 2 . 5 8 10 . 12 19 16 17 1 7 . . 2 Message Errors 23 | . . 2 . . . 3 1 3 . . 5 2 6 . . . . 1 Matter Fused 32 | . 4 . . . . 1 2 2 . 5 3 6 5 . 3 . . 1 Heat Flow Errors 12 | . 1 1 . 1 . . . 3 . 2 1 2 1 . . . . . Energy Discharges 15 | . 1 . 1 . . 1 2 . . 1 6 1 1 . 1 . . . Parts Fused 2 | . . . . . . . . 1 . . . . 1 . . . . . Data Loss (minor) 9 | . 1 . . . . . 1 1 . . 1 2 1 . 2 . . . Data Loss (major) 2 | . . . . . . . . . . . . 1 . 1 . . . . Misfires 6 | . . . . 1 . . 1 . . 2 . 1 . . 1 . . . Alerts 2 | . . . . . . . 1 . . . 1 . . . . . . . Weapon Failures 7 | . . . . . . . . . . 2 2 1 2 . . . . . Overload Shots . | . . . . . . . . . . . . . . . . . . . Overflow Damage 183 | . . . . . . 9 . . . . . . . . . 131 . 43 Projectiles . | . . . . . . . . . . . . . . . . . . . Explosions 183 | . . . . . . 9 . . . . . . . . . 131 . 43 Melee . | . . . . . . . . . . . . . . . . . . . Knockbacks . | . . . . . . . . . . . . . . . . . . . Impact . | . . . . . . . . . . . . . . . . . . . Kinetic . | . . . . . . . . . . . . . . . . . . . Secondary . | . . . . . . . . . . . . . . . . . . . Self-Inflicted Damage 413 | . . . . . 29 326 . . . . 58 . . . . . . . Shots 6 | . . . . . 1 4 . . . . 1 . . . . . . . Rammed 1 | . . . . . . . . . . . 1 . . . . . . . Targets Rammed 1 | . . . . . . . . . . . 1 . . . . . . . Kicked . | . . . . . . . . . . . . . . . . . . . Crushed . | . . . . . . . . . . . . . . . . . . . Highest Temperature 240 | . 137 116 . 240 205 122 4 104 . 166 109 88 17 . 209 . . 54 Average Temperature 33 | . 57 45 . 135 30 38 4 60 . 100 58 88 17 . 152 . . 13 Received Heat Transfer 5048 | . 360 165 . 108 1215 438 372 . . 446 195 174 51 . 385 402 27 710 Siege Activations . | . . . . . . . . . . . . . . . . . . . Martial Activations . | . . . . . . . . . . . . . . . . . . . Shielding Activations . | . . . . . . . . . . . . . . . . . . . Robots Disrupted . | . . . . . . . . . . . . . . . . . . . Combat Hostiles . | . . . . . . . . . . . . . . . . . . . Robots Corrupted . | . . . . . . . . . . . . . . . . . . . Combat Hostiles . | . . . . . . . . . . . . . . . . . . . Parts Fried . | . . . . . . . . . . . . . . . . . . . Impact Corruptions . | . . . . . . . . . . . . . . . . . . . Robots Melted 8 | . 1 . . . . 6 . . . 1 . . . . . . . . Combat Hostiles 8 | . 1 . . . . 6 . . . 1 . . . . . . . . Parts Melted 109 | . 1 4 . 3 18 50 6 1 . 4 11 1 3 . 2 4 . 1 Heat Transferred 43175 | . 1743 1147 . 666 5644 13488 2665 1206 . 4402 4201 900 1450 . 850 1937 . 2876 Parts Sabotaged 4 | . . . . . . . . . . . . . . . . 4 . . Parts Stolen . | . . . . . . . . . . . . . . . . . . . Parts Stripped . | . . . . . . . . . . . . . . . . . . . Power Chain Reactions 3 | . . . . . 2 . . . . . 1 . . . . . . . Alert | -11 -10 -10 -10 -9 -8 -7 -7 -7 -7 -6 -6 -6 -6 -6 -5 -5 -5 -5 ------- Run | Yrd Mat Min Exi Min Mat Fac Low Low Dat Pro Fac Low Low Zio Pro Fac Upp War Maximum Alert Level 5 | . 2 1 . . 4 5 . . . . 3 . . . . 5 . . Low Security (%) 14 | 100 31 . . 100 19 . . . . . . . . . . 9 . . Level 1 18 | . 40 100 . . 11 . . . . . 23 . . . . 5 . . Level 2 31 | . 28 . . . 29 38 . . . . 60 . . . . 7 . . Level 3 16 | . . . . . 12 38 . . . . 15 . . . . 18 . . Level 4 9 | . . . . . 27 14 . . . . . . . . . 5 . . Level 5 3 | . . . . . . 9 . . . . . . . . . 13 . . High Security 4 | . . . . . . . . . . . . . . . . 39 . . Max Security . | . . . . . . . . . . . . . . . . . . . Sterilizations 1 | . . . . . 1 . . . . . . . . . . . . . Peak Influence 2944 | 5 603 332 . 110 1320 1772 . . . . 927 . . . . 2944 . . Initial 595 | . . 232 . . 35 595 . . . . 227 . . . . 32 . . Average 693 | . 307 292 . 29 684 908 . . . . 501 . . . . 1482 . . Influence Increases 17106 | 5 1072 240 . 210 1867 1812 455 343 . 838 1736 190 445 . 383 3364 220 3926 Destroy 0b10 Robot/C 11280 | . 620 200 . 180 1020 1140 420 260 . 680 900 160 400 . 220 1580 180 3320 Destroy 0b10 Robot/NC 470 | 5 10 . . . 45 75 5 5 . 30 90 10 5 . . 125 . 65 Destroy Leader 1494 | . 152 40 . 30 274 260 30 20 . 60 220 20 40 . 40 268 40 . Allied During Kill 993 | . . . . . . . . 28 . 23 96 . . . 108 572 . 166 Successful Hack 147 | . 13 . . . 19 54 . . . . 61 . . . . . . . Select Force Hacks 610 | . 260 . . . 190 80 . . . 30 50 . . . . . . . Disable Machine 390 | . . . . . 15 75 . . . . 90 . . . . 210 . . Anti-Garrison Action 300 | . . . . . . . . . . . . . . . . 300 . . Destroy Structure 432 | . 2 . . . 19 53 . . . . 64 . . . . 294 . . Partial Spotted 75 | . 15 . . . 30 . . . . . 30 . . . . . . . Lose Combat Pursuer 915 | . . . . . 255 75 . 30 . 15 135 . . . 15 15 . 375 Influence Decreases 13662 | 5 476 564 272 120 649 1354 1026 746 792 476 1175 574 405 579 330 473 1304 2342 Entered New Map 7208 | . . 364 272 . 55 713 654 228 792 . 135 342 103 579 . 21 1090 1860 Time Decay 5394 | 5 476 190 . 110 534 601 362 498 . 436 510 222 302 . 290 262 214 382 Lost Part 160 | . . 10 . . 60 30 10 . . . 10 10 . . . 10 . 20 Lost Ally 600 | . . . . 10 . 10 . 20 . 40 220 . . . 40 180 . 80 Purge Threat 300 | . . . . . . . . . . . 300 . . . . . . . Squads Dispatched 87 | . 12 . . . 12 19 . 1 . 2 13 . 1 . . 27 . . Investigation 31 | . 12 . . . 6 6 . . . 2 5 . . . . . . . Extermination 8 | . . . . . . 5 . . . . 2 . . . . 1 . . Reinforcement 19 | . . . . . 4 3 . . . . 6 . . . . 6 . . Assault 24 | . . . . . 2 2 . 1 . . . . 1 . . 18 . . Garrison 5 | . . . . . . 3 . . . . . . . . . 2 . . Intercept . | . . . . . . . . . . . . . . . . . . . Searches Triggered . | . . . . . . . . . . . . . . . . . . . Construction Impeded 3 | . . . . . . . . . . . 1 . . . . 2 . . Haulers Reinforced 5 | . . . . . . 1 . . . . 2 . . . . 2 . . Active Scanning Responses . | . . . . . . . . . . . . . . . . . . . Cargo Convoy Interrupts 2 | . . . . . . 1 . . . . 1 . . . . . . . Stealth | -11 -10 -10 -10 -9 -8 -7 -7 -7 -7 -6 -6 -6 -6 -6 -5 -5 -5 -5 --------- Run | Yrd Mat Min Exi Min Mat Fac Low Low Dat Pro Fac Low Low Zio Pro Fac Upp War Distress Signals 25 | . 2 . . . 7 5 . . . . 7 . . . . 3 . 1 Communications Jammed . | . . . . . . . . . . . . . . . . . . . Distress Signals . | . . . . . . . . . . . . . . . . . . . Times Spotted 761 | . 45 10 . 12 87 90 21 19 . 38 58 7 20 . 11 90 12 241 Peak Tracking Total 28 | . 8 3 . 15 12 9 7 9 . 7 9 4 8 . 4 7 4 28 Tactical Retreats 35 | . . . . 3 7 5 . 1 . 1 5 . . . 1 1 1 10 Traps | -11 -10 -10 -10 -9 -8 -7 -7 -7 -7 -6 -6 -6 -6 -6 -5 -5 -5 -5 ------- Run | Yrd Mat Min Exi Min Mat Fac Low Low Dat Pro Fac Low Low Zio Pro Fac Upp War Traps Triggered 11 | . 3 . . . . 5 . . . . 2 . . . . 1 . . Indirectly . | . . . . . . . . . . . . . . . . . . . Trap Hack Attempts . | . . . . . . . . . . . . . . . . . . . Triggered . | . . . . . . . . . . . . . . . . . . . Disarmed 5 | . . . . . . . . . . . 5 . . . . . . . Reprogrammed . | . . . . . . . . . . . . . . . . . . . Reused . | . . . . . . . . . . . . . . . . . . . Traps Extracted . | . . . . . . . . . . . . . . . . . . . Installed . | . . . . . . . . . . . . . . . . . . . Triggered . | . . . . . . . . . . . . . . . . . . . Machines | -11 -10 -10 -10 -9 -8 -7 -7 -7 -7 -6 -6 -6 -6 -6 -5 -5 -5 -5 ---------- Run | Yrd Mat Min Exi Min Mat Fac Low Low Dat Pro Fac Low Low Zio Pro Fac Upp War Machines Disabled 34 | . . . . . 1 5 1 1 . 2 6 . 1 . . 16 . 1 Max in Single Turn 4 | . . . . . 1 4 1 1 . 1 2 . 1 . . 3 . 1 Garrison Access 4 | . . . . . 1 1 . . . . . . . . . 2 . . Machines Repaired . | . . . . . . . . . . . . . . . . . . . Machines Dismantled . | . . . . . . . . . . . . . . . . . . . Machines Sabotaged 6 | . 4 . . . 2 . . . . . . . . . . . . . Overloaded Fab Kills 2 | . . . . . . 1 . . . . 1 . . . . . . . Hacking | -11 -10 -10 -10 -9 -8 -7 -7 -7 -7 -6 -6 -6 -6 -6 -5 -5 -5 -5 --------- Run | Yrd Mat Min Exi Min Mat Fac Low Low Dat Pro Fac Low Low Zio Pro Fac Upp War Machines Accessed 68 | . 11 . 4 . 12 14 2 2 4 3 10 . 1 . . 2 . 3 Terminals 29 | . 8 . . . 7 6 . . . 1 7 . . . . . . . Fabricators 8 | . . . . . . 4 . . . 1 2 . . . . 1 . . Repair Stations 3 | . 1 . . . 1 1 . . . . . . . . . . . . Recycling Units 6 | . 2 . . . 2 1 . . . 1 . . . . . . . . Scanalyzers 3 | . . . . . 1 1 . . . . . . . . . 1 . . Garrison Access 3 | . . . . . 1 1 . . . . 1 . . . . . . . Total Hacks 178 | . 17 . 4 . 21 41 2 7 27 7 38 . 1 . . 3 . 10 Successful 130 | . 15 . 4 . 11 24 2 7 27 3 24 . 1 . . 2 . 10 Failed 47 | . 2 . . . 10 16 . . . 4 14 . . . . 1 . . Catastrophic 9 | . . . . . 2 4 . . . 1 2 . . . . . . . Database Lockouts 1 | . . . . . . 1 . . . . . . . . . . . . Manual 109 | . 18 . . . 17 28 . . . 1 22 . . . . 22 . 1 Terminals 80 | . 13 . . . 15 19 . . . 1 32 . . . . . . . Fabricators 23 | . . . . . . 12 . . . 5 4 . . . . 2 . . Repair Stations 4 | . 1 . . . 1 2 . . . . . . . . . . . . Recycling Units 7 | . 3 . . . 2 1 . . . 1 . . . . . . . . Scanalyzers 3 | . . . . . 1 1 . . . . . . . . . 1 . . Garrison Access 10 | . . . . . 2 6 . . . . 2 . . . . . . . Terminal Hacks 75 | . 2 . 4 . 3 6 2 7 27 1 12 . 1 . . . . 10 Record 23 | . . . 4 . . . . 6 11 . . . . . . . . 2 Part Schematic 10 | . . . . . . 1 . . 9 . . . . . . . . . Robot Schematic 4 | . . . . . . . . . 4 . . . . . . . . . Robot Analysis 7 | . 2 . . . 1 1 . . . . 3 . . . . . . . Prototype ID Bank 12 | . . . . . . 1 . . 3 . 1 . . . . . . 7 Open Door 6 | . . . . . . . 2 1 . 1 . . 1 . . . . 1 Branch Access Points 3 | . . . . . 1 1 . . . . 1 . . . . . . . Terminal Index 1 | . . . . . 1 . . . . . . . . . . . . . Alert Level 2 | . . . . . . . . . . . 2 . . . . . . . Unreport Threat 2 | . . . . . . . . . . . 2 . . . . . . . Locate Traps 3 | . . . . . . 2 . . . . 1 . . . . . . . Disarm Traps 2 | . . . . . . . . . . . 2 . . . . . . . Fabricator Hacks 8 | . . . . . . 5 . . . 1 2 . . . . . . . Network Status 1 | . . . . . . 1 . . . . . . . . . . . . Load Schematic 3 | . . . . . . 2 . . . . 1 . . . . . . . Build 4 | . . . . . . 2 . . . 1 1 . . . . . . . Repair Station Hacks 1 | . . . . . . 1 . . . . . . . . . . . . Refit 1 | . . . . . . 1 . . . . . . . . . . . . Recycling Unit Hacks . | . . . . . . . . . . . . . . . . . . . Scanalyzer 2 | . . . . . . 1 . . . . . . . . . 1 . . Retrieve Study 2 | . . . . . . 1 . . . . . . . . . 1 . . Garrison Access Hacks 2 | . . . . . 1 1 . . . . . . . . . . . . Seal Access 2 | . . . . . 1 1 . . . . . . . . . . . . Unauthorized Hacks 42 | . 13 . . . 7 10 . . . 1 10 . . . . 1 . . Terminals 24 | . 10 . . . 3 3 . . . . 8 . . . . . . . Assimilate 3 | . 1 . . . . 1 . . . . 1 . . . . . . . Botnet 9 | . . . . . 1 2 . . . . 6 . . . . . . . Disrupt 2 | . 2 . . . . . . . . . . . . . . . . . Operators 1 | . . . . . . . . . . . 1 . . . . . . . Sabotage 7 | . 5 . . . 2 . . . . . . . . . . . . . Search 2 | . 2 . . . . . . . . . . . . . . . . . Fabricators 7 | . . . . . . 4 . . . . 2 . . . . 1 . . Prioritize 1 | . . . . . . 1 . . . . . . . . . . . . Liberate 1 | . . . . . . 1 . . . . . . . . . . . . Haulers 3 | . . . . . . 1 . . . . 1 . . . . 1 . . Overload 2 | . . . . . . 1 . . . . 1 . . . . . . . Repair Stations 3 | . 1 . . . 1 1 . . . . . . . . . . . . Patch 3 | . 1 . . . 1 1 . . . . . . . . . . . . Recycling Units 6 | . 2 . . . 2 1 . . . 1 . . . . . . . . Tunnel 6 | . 2 . . . 2 1 . . . 1 . . . . . . . . Scanalyzers 1 | . . . . . 1 . . . . . . . . . . . . . Extract 1 | . . . . . 1 . . . . . . . . . . . . . Garrison Access 1 | . . . . . . 1 . . . . . . . . . . . . Watchers 1 | . . . . . . 1 . . . . . . . . . . . . Data Cores Recovered 1 | . . . . . . 1 . . . . . . . . . . . . Used . | . . . . . . . . . . . . . . . . . . . Hacking Detections 25 | . 2 . . . 5 8 . . . 1 8 . . . . 1 . . Full Trace Events 8 | . . . . . 1 3 . . . 1 3 . . . . . . . Feedback Events 1 | . . . . . . . . . . . 1 . . . . . . . Corruption 1 | . . . . . . . . . . . 1 . . . . . . . Feedback Blocked . | . . . . . . . . . . . . . . . . . . . Robot Schematics Acquired 7 | . . . . . . . . . 4 . . . . 3 . . . . Robots Built 2 | . . . . . . . . . . 1 1 . . . . . . . Authchips . | . . . . . . . . . . . . . . . . . . . Time 210 | . . . . . . . . . . 76 134 . . . . . . . Total Robot Build Rating 9 | . . . . . . . . . . 5 4 . . . . . . . Part Schematics Acquired 42 | . . . . . 2 1 . . 9 . . . . 14 . 16 . . Parts Built 4 | . . . . . . 4 . . . . . . . . . . . . Authchips . | . . . . . . . . . . . . . . . . . . . Time 94 | . . . . . . 94 . . . . . . . . . . . . Total Part Build Rating 20 | . . . . . . 20 . . . . . . . . . . . . Part Studies Acquired 2 | . . . . . . 1 . . . . . . . . . 1 . . Parts Repaired . | . . . . . . . . . . . . . . . . . . . Time . | . . . . . . . . . . . . . . . . . . . Parts Recycled . | . . . . . . . . . . . . . . . . . . . Recycled Matter . | . . . . . . . . . . . . . . . . . . . Retrieved Matter . | . . . . . . . . . . . . . . . . . . . Retrieved Components . | . . . . . . . . . . . . . . . . . . . Parts Scanalyzed . | . . . . . . . . . . . . . . . . . . . Part Schematics Acquired . | . . . . . . . . . . . . . . . . . . . Parts Damaged . | . . . . . . . . . . . . . . . . . . . Bothacking | -11 -10 -10 -10 -9 -8 -7 -7 -7 -7 -6 -6 -6 -6 -6 -5 -5 -5 -5 ------------ Run | Yrd Mat Min Exi Min Mat Fac Low Low Dat Pro Fac Low Low Zio Pro Fac Upp War Used RIF Installer . | . . . . . . . . . . . . . . . . . . . Robots Hacked . | . . . . . . . . . . . . . . . . . . . Non-combat . | . . . . . . . . . . . . . . . . . . . Combat . | . . . . . . . . . . . . . . . . . . . Robot Hacks Applied . | . . . . . . . . . . . . . . . . . . . Relay Couplers Released 1 | . . . . . . . . . . . . . . . . 1 . . Machine Destruction 1 | . . . . . . . . . . . . . . . . 1 . . Fabnet Peak Effective % . | . . . . . . . . . . . . . . . . . . . Robots Rewired 24 | . . . . . . . 2 2 . 11 2 . 2 . . . . 5 Allies Hacked 1 | . . . . . . . . . . . 1 . . . . . . . Hacks Repelled . | . . . . . . . . . . . . . . . . . . . Allies | -11 -10 -10 -10 -9 -8 -7 -7 -7 -7 -6 -6 -6 -6 -6 -5 -5 -5 -5 -------- Run | Yrd Mat Min Exi Min Mat Fac Low Low Dat Pro Fac Low Low Zio Pro Fac Upp War Total Allies 44 | . 1 . . . . 1 2 2 . 12 4 . 2 10 . 5 . 5 Largest Group 13 | . 1 1 1 1 . 1 2 4 3 12 13 . 2 12 12 13 . 5 Highest-Rated Group 569 | . 10 10 10 10 . 26 46 95 79 255 265 . 64 373 373 569 . 275 Highest-Rated Ally 85 | . 10 10 10 10 . 26 30 32 32 41 41 . 32 39 39 85 . 64 Zionite Dispatches 3 | . . . . . . . . . . . . . . . . 3 . . Heavy 1 | . . . . . . . . . . . . . . . . 1 . . Recon 1 | . . . . . . . . . . . . . . . . 1 . . Hacker 1 | . . . . . . . . . . . . . . . . 1 . . Total Orders 18 | . 4 3 . 2 . . . . . . . . 2 . . 3 . 4 STAY 11 | . 2 2 . 1 . . . . . . . . 2 . . . . 4 ROAM 1 | . . . . . . . . . . . . . . . . 1 . . FOLLOW 4 | . 2 1 . 1 . . . . . . . . . . . . . . EXPLORE 2 | . . . . . . . . . . . . . . . . 2 . . Ally Attacks 218 | . . . . . . . . 23 . 12 57 . . . 17 69 . 40 Total Damage 5753 | . . . . . . . . 367 . 227 1119 . . . 310 2674 . 1056 Kills 51 | . . . . . . . . 4 . 2 14 . . . 1 24 . 6 Allies Corrupted 3 | . . . . . . . . . . . . . . . . 1 . 2 Allies Melted . | . . . . . . . . . . . . . . . . . . . Intel | -11 -10 -10 -10 -9 -8 -7 -7 -7 -7 -6 -6 -6 -6 -6 -5 -5 -5 -5 ------- Run | Yrd Mat Min Exi Min Mat Fac Low Low Dat Pro Fac Low Low Zio Pro Fac Upp War Active Infowar (turns) 14842 | 27 1260 396 253 301 1504 1844 770 1327 72 1101 1392 471 666 741 676 946 449 646 Optics 2 | . . . . . . . . . . . . . . . . . . 2 Sensors 344 | . . . . . 344 . . . . . . . . . . . . . Terrain 13053 | 24 1260 396 253 301 1504 98 732 1327 72 1101 1392 471 666 741 676 946 449 644 Seismic 5623 | 27 1260 396 253 301 1504 1844 38 . . . . . . . . . . . Cloaking 1 | . . . . . . . . . . . . . . . . . . 1 Robot Analysis Total 7 | . 2 . . . 1 1 . . . . 3 . . . . . . . Derelict Logs Recovered 14 | . . 2 . 1 . . 2 1 . 1 . 1 2 . 3 . 1 . Drone Launches 3 | . . . . . . . . . . . . . . . . 3 . . Drone Recoveries 1 | . . . . . . . . . . . . . . . . 1 . . Zionite Intel Received 3 | . . . . . . . . . . . . . . . . 3 . . Main Access 1 | . . . . . . . . . . . . . . . . 1 . . Branch Access 1 | . . . . . . . . . . . . . . . . 1 . . Component Schematics 1 | . . . . . . . . . . . . . . . . 1 . . Exploration | -11 -10 -10 -10 -9 -8 -7 -7 -7 -7 -6 -6 -6 -6 -6 -5 -5 -5 -5 ------------- Run | Yrd Mat Min Exi Min Mat Fac Low Low Dat Pro Fac Low Low Zio Pro Fac Upp War Turns Passed 16045 | 60 1260 396 253 301 1504 1933 820 1327 72 1101 1392 471 666 741 676 946 449 1677 Spaces Moved 19542 | 45 1029 722 615 544 1574 2327 904 1491 90 1153 1247 986 1110 981 970 1190 889 1675 Core 2 | 2 . . . . . . . . . . . . . . . . . . Treads . | . . . . . . . . . . . . . . . . . . . Legs . | . . . . . . . . . . . . . . . . . . . Wheels 542 | 43 499 . . . . . . . . . . . . . . . . . Hover 16549 | . . . . . 1536 2327 904 1491 90 1153 1247 986 1110 981 970 1190 889 1675 Flight 2449 | . 530 722 615 544 38 . . . . . . . . . . . . . Fastest Speed 15 | 50 37 37 37 34 34 48 61 48 52 52 42 42 42 42 42 38 38 15 Average Speed 46 | 97 67 37 37 36 49 48 61 55 52 52 51 42 42 42 42 38 38 35 Slowest Speed 205 | 100 205 37 37 37 110 61 61 61 52 52 116 42 42 42 42 42 38 88 Overloaded Moves 107 | . . . . . . . . . . . . . . . . . . 107 Propulsion Burnouts . | . . . . . . . . . . . . . . . . . . . Robots Hopped 22 | . 2 12 . 7 1 . . . . . . . . . . . . . Potential Cave-ins 3 | . . . . . . . . . . . . . . . . . . 3 Cave-ins Triggered . | . . . . . . . . . . . . . . . . . . . Exploration Rate (%) 80 | 3 99 99 89 82 94 65 95 97 69 92 41 98 96 91 95 41 96 86 Regions Visited 18 Branch Regions 13 Pre-discovered Areas 10 | . 2 1 . 1 2 1 1 . 1 1 . . . . . . . . Known Exits Taken 9 | . . . 1 . . 1 . . . . 1 1 1 1 1 1 1 . Unknown Exits Taken 9 | 1 1 1 . 1 1 . 1 1 1 1 . . . . . . . . Scrap Searched 31 | . . 1 . 2 . . 6 2 . 2 . 5 4 3 4 . 2 . Spaces Dug 33 | . . . . . . 3 . . . . 1 . 20 . . 3 . 6 Terrain Destroyed 639 | . . . . . 16 66 41 12 . 17 67 9 48 . 18 131 24 190 Melee 1 | . . . . . . . . . . . . . . . . . . 1 Projectile 470 | . . . . . . 13 41 12 . 17 42 9 48 . 18 93 24 153 AOE 168 | . . . . . 16 53 . . . . 25 . . . . 38 . 36 Terrain Rammed . | . . . . . . . . . . . . . . . . . . . Walls Destroyed . | . . . . . . . . . . . . . . . . . . . Machines Disabled . | . . . . . . . . . . . . . . . . . . . Actions | -11 -10 -10 -10 -9 -8 -7 -7 -7 -7 -6 -6 -6 -6 -6 -5 -5 -5 -5 --------- Run | Yrd Mat Min Exi Min Mat Fac Low Low Dat Pro Fac Low Low Zio Pro Fac Upp War Total 24760 | 53 1434 778 639 591 2023 2897 1117 1962 114 1543 1884 1019 1263 1306 1210 1515 975 2437 Wait 2839 | . 265 17 25 12 160 282 102 381 19 172 448 . 41 321 212 78 20 284 Move 19483 | 44 1024 699 614 530 1571 2326 903 1490 89 1152 1246 985 1109 980 969 1189 888 1675 Hop 19 | . 2 10 . 6 1 . . . . . . . . . . . . . Pick Up 52 | . 8 4 . 2 5 9 . . . . 4 . 1 . . 5 . 14 Fast Attach 69 | 7 3 1 . 1 10 11 3 1 3 . 7 . 3 1 1 11 . 6 Attach 11 | . . . . . 3 1 . 1 . . . 1 . . . 3 . 2 Detach 3 | . . . . . 1 . 1 . . . . . . . . 1 . . Swap 134 | . 6 . . 2 13 31 3 8 . 1 12 . 3 4 . 9 . 42 Drop 86 | . 7 5 . 3 7 13 3 4 3 . 9 . 4 . . 5 3 20 Fire 1158 | 2 81 31 . 24 160 171 48 27 . 86 86 18 49 . 13 124 20 218 Melee 9 | . . . . . . . . . . . . . . . 5 . . 4 Ram 1 | . . . . . . . . . . . 1 . . . . . . . Kick . | . . . . . . . . . . . . . . . . . . . Crush . | . . . . . . . . . . . . . . . . . . . Escape Stasis 26 | . . . . . . 13 . . . . 13 . . . . . . . Rewire 117 | . . . . . . . 10 6 . 65 11 . 11 . . . . 14 Trap . | . . . . . . . . . . . . . . . . . . . Miscellaneous 753 | . 38 11 . 11 92 40 44 44 . 67 47 15 42 . 10 90 44 158 Route ------- -11/Scrapyard -10/Materials (discovered 6 exits: [*Mat x3] / [*Min x2] / [*Sub]) -10/Mines (discovered 4 exits: [*Mat x2] / *Exi / [*Sub]) -10/Exiles (discovered 2 exits: *Min x2) -9/Mines (discovered 2 exits: *Mat x2) -8/Materials (discovered 3 exits: *Fac x3) -7/Factory (discovered 4 exits: *Fac / *Sto / *Low x2) -7/Lower Caves -7/Lower Caves (discovered 2 exits: *Fac / *Dat) -7/Data Miner -6/Proximity Caves -6/Factory (discovered 4 exits: *Fac x2 / *Low x2) -6/Lower Caves -6/Lower Caves (discovered 2 exits: *Fac / *Zio) -6/Zion (discovered 2 exits: [Dee] / *Pro) -5/Proximity Caves -5/Factory (discovered 6 exits: *Fac x4 / *Upp x2) -5/Upper Caves (discovered 2 exits: *Upp / *War) -5/Warlord (discovered 1 exit: *Pro) History --------- Turn | Location | Event 1 | -11/Scrapyard | Upgraded with Propulsion slot (x1) 1 | -11/Scrapyard | Upgraded with Utility slot (x1) 1 | -11/Scrapyard | Upgraded with Weapon slot (x1) 14 | -11/Scrapyard | Discovered new exit (range 15) 61 | -11/Scrapyard | Entered Materials 264 | -10/Materials | Discovered new exit (range 5) 282 | -10/Materials | Discovered new exit (range 16) 318 | -10/Materials | Build established: Mutant 418 | -10/Materials | Reached level 2 639 | -10/Materials | Discovered new exit (range 11) 643 | -10/Materials | Discovered new exit (range 10) 673 | -10/Materials | Discovered new exit (range 12) 695 | -10/Materials | Discovered new exit (range 3) 713 | -10/Materials | Reached level 3 957 | -10/Materials | Upgraded with Utility slot (x2) 1096 | -10/Materials | Reached level 4 1233 | -10/Materials | Upgraded with Utility slot (x1) 1267 | -10/Materials | Build established: Scavenger-Mutant 1321 | -10/Materials | Entered Mines 1321 | -10/Mines | Accompanied by 1 ally 1335 | -10/Mines | Discovered new exit (range 2) 1362 | -10/Mines | Reached level 5 1433 | -10/Mines | Discovered new exit (range 5) 1475 | -10/Mines | Received a Rocket Launcher from a helpful Derelict 1488 | -10/Mines | Learned location of Storage (-7) 1559 | -10/Mines | Core integrity fell below 50% 1567 | -10/Mines | Found a Scrap Suit stashed away for nefarious purposes 1607 | -10/Mines | Found Scrap Suit 1666 | -10/Mines | Discovered new exit (range 10) 1669 | -10/Mines | Found a damaged Exp. Sensor Array with a note attached 1671 | -10/Mines | Found Prototype Device 1686 | -10/Mines | Deemed a non-threat by the Exiles lab entrance 1687 | -10/Mines | Discovered new exit (range 5) 1717 | -10/Mines | Entered Exiles 1717 | -10/Exiles | Found Exiles lab abandoned 1717 | -10/Exiles | Accompanied by 1 ally 1718 | -10/Exiles | Identified exit to Mines 1970 | -10/Exiles | Entered Mines 1970 | -9/Mines | Accompanied by 1 ally 1974 | -9/Mines | Learned Materials trap positions 1983 | -9/Mines | Discovered new exit (range 5) 2069 | -9/Mines | Reached level 6 2093 | -9/Mines | Discovered new exit (range 5) 2094 | -9/Mines | Assembled infested the area 2243 | -9/Mines | Upgraded with Propulsion slot (x1) 2271 | -9/Mines | Entered Materials 2272 | -8/Materials | Loaded intel: 10 trap records 2273 | -8/Materials | Reached level 7 2429 | -8/Materials | Reached level 8 2649 | -8/Materials | Build established: Mutant 2649 | -8/Materials | Discovered new exit (range 10) 2707 | -8/Materials | Discovered new exit (range 15) 2740 | -8/Materials | Reached level 9 2930 | -8/Materials | Reached level 10 2981 | -8/Materials | Core integrity fell below 50% 3002 | -8/Materials | Upgraded with Utility slot (x2) 3002 | -8/Materials | Identified Exp. Sensor Array 3071 | -8/Materials | First assault squad dispatched 3249 | -8/Materials | Reached level 11 3252 | -8/Materials | Core integrity fell below 20% 3285 | -8/Materials | Destroyed 8 combat bots 3397 | -8/Materials | Discovered new exit (range 10) 3476 | -8/Materials | Reached level 12 3548 | -8/Materials | Sterilization system engaged 3548 | -8/Materials | Non-combat units ordered to evacuate 3648 | -8/Materials | Combat units ordered to evacuate 3698 | -8/Materials | Build established: Hacker-Mutant 3775 | -8/Materials | Entered Factory 3777 | -7/Factory | Reached level 13 3786 | -7/Factory | Upgraded with Utility slot (x1) 4050 | -7/Factory | Garrison activated, responded to threat 4071 | -7/Factory | Core integrity fell below 50% 4154 | -7/Factory | Reached level 14 4201 | -7/Factory | Fabricated Plasma Rifle (x2) 4229 | -7/Factory | Discovered new exit (range 5) 4336 | -7/Factory | Discovered new exit (range 8) 4399 | -7/Factory | Fabricated Plasma Rifle (x2) 4706 | -7/Factory | Identified exit to Storage 4706 | -7/Factory | Identified exit to Lower Caves 4981 | -7/Factory | Central database locked down 5053 | -7/Factory | Reached level 15 5088 | -7/Factory | Upgraded with Weapon slot (x1) 5178 | -7/Factory | Cargo convoy interrupted 5263 | -7/Factory | Core integrity fell below 20% 5319 | -7/Factory | Destroyed 9 combat bots 5343 | -7/Factory | Reached level 16 5375 | -7/Factory | First assault squad dispatched 5375 | -7/Factory | Found Prototype Processor 5375 | -7/Factory | Identified Exp. Targeting Computer 5508 | -7/Factory | Build established: Hacker-Gunner 5568 | -7/Factory | Destroyed 7 combat bots 5708 | -7/Factory | Entered Lower Caves 6012 | -7/Lower Caves | Attracted the attention of an 0b10 checkpoint 6034 | -7/Lower Caves | Learned location of Zion (-6) 6089 | -7/Lower Caves | Discovered new exit (range 15) 6097 | -7/Lower Caves | Build established: Hacker-Tank 6161 | -7/Lower Caves | Attracted the attention of an 0b10 outpost 6218 | -7/Lower Caves | Destroyed 7 combat bots 6384 | -7/Lower Caves | Reached level 17 6528 | -7/Lower Caves | Entered another Lower Caves area 6528 | -7/Lower Caves | Accompanied by 2 allies 6535 | -7/Lower Caves | Found DCF Scrap (12 items) 6575 | -7/Lower Caves | Encountered a Warlord checkpoint 6607 | -7/Lower Caves | Activated DRS Beacon 6739 | -7/Lower Caves | Discovered new exit (range 7) 6903 | -7/Lower Caves | Attracted the attention of an 0b10 outpost 7029 | -7/Lower Caves | Upgraded with Power slot (x1) 7101 | -7/Lower Caves | Discovered new exit (range 7) 7114 | -7/Lower Caves | Learned location of 1 exit from Research 7114 | -7/Lower Caves | Learned Armory terminal intel 7114 | -7/Lower Caves | Learned Research trap positions 7114 | -7/Lower Caves | Learned Factory garrison access intel 7119 | -7/Lower Caves | Learned Factory stockpile data 7855 | -7/Lower Caves | Entered Data Miner 7855 | -7/Data Miner | Accompanied by 3 allies 7855 | -7/Data Miner | Discovered new exit (range 6) 7867 | -7/Data Miner | Met Data Miner 7882 | -7/Data Miner | Learned location of Section 7 (-2) 7882 | -7/Data Miner | Acquired the access code to Warlord's prototype stash 7888 | -7/Data Miner | Received God Mode back door access code from Data Miner 7927 | -7/Data Miner | Entered Proximity Caves 7927 | -6/Proximity Caves | Accompanied by 3 allies 7955 | -6/Proximity Caves | Attracted the attention of an 0b10 checkpoint 7961 | -6/Proximity Caves | Reached level 18 7992 | -6/Proximity Caves | Entered a huge 0b10 base via the front door 7994 | -6/Proximity Caves | Spotted B-75 Beast 8036 | -6/Proximity Caves | Destroyed B-75 Beast 8088 | -6/Proximity Caves | Discovered new exit (range 17) 8295 | -6/Proximity Caves | Learned 12 Factory zone layouts 8615 | -6/Proximity Caves | Spotted B-75 Beast 8624 | -6/Proximity Caves | Destroyed B-75 Beast 8699 | -6/Proximity Caves | Reached level 19 8801 | -6/Proximity Caves | Fabricated M-22 Extractor (x1) 9028 | -6/Proximity Caves | Entered Factory 9028 | -6/Factory | Accompanied by 12 allies 9029 | -6/Factory | Identified exit to Factory 9029 | -6/Factory | Identified exit to Lower Caves 9031 | -6/Factory | Loaded intel: 4 garrison access locations 9146 | -6/Factory | Build established: Commander-Tank 9154 | -6/Factory | Lost 5 allies 9244 | -6/Factory | Fabricated I-36 Angel? 9288 | -6/Factory | Reached level 20 9341 | -6/Factory | Upgraded with Utility slot (x1) 9349 | -6/Factory | Discovered exit to Factory (range 13) 9629 | -6/Factory | Build established: Hacker-Tank 9648 | -6/Factory | P-60 Hacker assimilated allied Administrator 5a 10175 | -6/Factory | Cargo convoy interrupted 10227 | -6/Factory | Core integrity fell below 50% 10259 | -6/Factory | Destroyed 7 combat bots 10288 | -6/Factory | Found Prototype Device 10288 | -6/Factory | Identified Adv. Kinecellerator 10383 | -6/Factory | Spotted B-75 Beast 10420 | -6/Factory | Entered Lower Caves 10506 | -6/Lower Caves | Encountered a Warlord checkpoint 10524 | -6/Lower Caves | Attracted the attention of an 0b10 checkpoint 10592 | -6/Lower Caves | Build established: Hacker-Gunner 10601 | -6/Lower Caves | Discovered new exit (range 19) 10619 | -6/Lower Caves | Identified exit to Lower Caves 10891 | -6/Lower Caves | Entered another Lower Caves area 10893 | -6/Lower Caves | Reached level 21 10893 | -6/Lower Caves | Learned location of 1 exit from Factory 10894 | -6/Lower Caves | Discovered exit to Factory (range 22) 10898 | -6/Lower Caves | Learned Factory security intel 10936 | -6/Lower Caves | Encountered a Warlord checkpoint 10949 | -6/Lower Caves | Attracted the attention of an 0b10 outpost 10996 | -6/Lower Caves | Destroyed 9 combat bots 11111 | -6/Lower Caves | Discovered new exit (range 9) 11114 | -6/Lower Caves | Identified exit to Zion 11314 | -6/Lower Caves | Found DCF Scrap (12 items) 11364 | -6/Lower Caves | Spotted B-75 Beast 11379 | -6/Lower Caves | Destroyed B-75 Beast 11557 | -6/Lower Caves | Build established: Hacker-Scout 11557 | -6/Lower Caves | Entered Zion 11557 | -6/Zion | Accompanied by 2 allies 11576 | -6/Zion | System corruption cleaned by Quarantine Array 11587 | -6/Zion | Discovered new exit (range 17) 11683 | -6/Zion | Gained Derelict followers 11696 | -6/Zion | Learned Factory emergency access door positions 11702 | -6/Zion | Gained Derelict followers 11711 | -6/Zion | Discovered new exit (range 18) 11747 | -6/Zion | Given A8's code to call for help 11755 | -6/Zion | Upgraded with Weapon slot (x1) 11755 | -6/Zion | Found CR-A16's Pointy Stick 11965 | -6/Zion | Met Imprinter 11982 | -6/Zion | Imprinted 11984 | -6/Zion | Declared Zion's savior 12086 | -6/Zion | Identified exit to Proximity Caves 12298 | -6/Zion | Entered Proximity Caves 12298 | -5/Proximity Caves | Accompanied by 12 allies 12305 | -5/Proximity Caves | Learned location of 2 exits from Factory 12386 | -5/Proximity Caves | Learned Factory emergency access door positions 12472 | -5/Proximity Caves | Spotted B-75 Beast 12524 | -5/Proximity Caves | Reached level 22 12524 | -5/Proximity Caves | Revealed the true nature of CR-A16's Pointy Stick 12527 | -5/Proximity Caves | Destroyed B-75 Beast 12560 | -5/Proximity Caves | Discovered exit to Factory (range 5) 12568 | -5/Proximity Caves | Attracted the attention of an 0b10 checkpoint 12578 | -5/Proximity Caves | Learned Factory stockpile data 12974 | -5/Proximity Caves | Entered Factory 12974 | -5/Factory | Accompanied by 10 allies 12975 | -5/Factory | Identified exit to Factory 12975 | -5/Factory | Identified exit to Upper Caves 12979 | -5/Factory | Zion Hacker squad teleported in 13078 | -5/Factory | Reached level 23 13101 | -5/Factory | Zion Heavy squad teleported in 13138 | -5/Factory | Discovered exit to Factory (range 7) 13155 | -5/Factory | Upgraded with Propulsion slot (x1) 13208 | -5/Factory | Retrieved Zion intel report: Branch Access 13307 | -5/Factory | Retrieved Zion intel report: Main Access 13324 | -5/Factory | Retrieved Zion intel report: Component Schematics 13325 | -5/Factory | Zion Recon squad teleported in 13340 | -5/Factory | Garrison activated, responded to threat 13400 | -5/Factory | Lost 4 allies 13412 | -5/Factory | Reached level 24 13441 | -5/Factory | Upgraded with Utility slot (x1) 13542 | -5/Factory | High security lockdown imminent 13574 | -5/Factory | Found Prototype Protection 13574 | -5/Factory | Identified Zio. Weapon Casing 13597 | -5/Factory | Lost 3 allies 13622 | -5/Factory | High security lockdown engaged 13806 | -5/Factory | Destroyed 8 combat bots 13832 | -5/Factory | Garrison activated, responded to threat 13919 | -5/Factory | Destroyed 15 combat bots 13920 | -5/Factory | Entered Upper Caves 14000 | -5/Upper Caves | Ambushed by wild Derelicts 14047 | -5/Upper Caves | A Derelict revealed a hidden shortcut to "reach the base" 14098 | -5/Upper Caves | Discovered new exit (range 14) 14109 | -5/Upper Caves | Identified exit to Upper Caves 14120 | -5/Upper Caves | Learned 8 Factory zone layouts 14369 | -5/Upper Caves | Identified exit to Warlord 14369 | -5/Upper Caves | Entered Warlord 14501 | -5/Warlord | Visited the Vortex Lab 14504 | -5/Warlord | Met EX-DEC 14507 | -5/Warlord | Found Prototype Energy Gun 14507 | -5/Warlord | Identified Vortex Rail 14512 | -5/Warlord | Found Prototype Energy Gun 14514 | -5/Warlord | Found Prototype Energy Gun 14515 | -5/Warlord | Identified Vortex Shotgun (x2) 14521 | -5/Warlord | Found Vortex Rail 14522 | -5/Warlord | Reached level 25 14522 | -5/Warlord | Warlord's base attacked by MAIN.C 14583 | -5/Warlord | Rebuked by Warlord 14586 | -5/Warlord | Opened Warlord's prototype stash 14595 | -5/Warlord | Found Prototype Device 14595 | -5/Warlord | Identified Exp. Cloaking Device 14600 | -5/Warlord | Found Prototype Device 14600 | -5/Warlord | Identified System Purifier 14602 | -5/Warlord | Found Prototype Processor 14602 | -5/Warlord | Identified Exp. Armor Integrity Analyzer 14606 | -5/Warlord | Found Prototype Reactor 14606 | -5/Warlord | Identified Vortex Chain Reactor 14608 | -5/Warlord | Upgraded with Propulsion slot (x1) 14796 | -5/Warlord | Destroyed 9 combat bots 14872 | -5/Warlord | Warlord forces counterattacked 14887 | -5/Warlord | Spotted Executioner 14891 | -5/Warlord | Destroyed Executioner 14896 | -5/Warlord | Discovered new exit (range 24) 14922 | -5/Warlord | Spotted Executioner 14922 | -5/Warlord | Spotted Striker 14925 | -5/Warlord | Destroyed Executioner 14941 | -5/Warlord | Destroyed Striker 14983 | -5/Warlord | Destroyed 38 combat bots 14985 | -5/Warlord | Build established: Commander-Scout 14988 | -5/Warlord | Lost 3 allies 15015 | -5/Warlord | Found Prototype Processor 15015 | -5/Warlord | Identified Exp. Core Analyzer 15047 | -5/Warlord | Spotted Executioner 15050 | -5/Warlord | Destroyed Executioner 15071 | -5/Warlord | Destroyed 11 combat bots 15077 | -5/Warlord | Lost 5 allies 15124 | -5/Warlord | Destroyed Executioner 15125 | -5/Warlord | Spotted Executioner 15129 | -5/Warlord | P-80 Master assimilated allied 6G-JWS(g) 15140 | -5/Warlord | Destroyed Executioner 15161 | -5/Warlord | Destroyed 13 combat bots 15168 | -5/Warlord | Lost 11 allies 15197 | -5/Warlord | Warlord base infiltrated, sounded retreat 15252 | -5/Warlord | Spotted Executioner 15257 | -5/Warlord | Destroyed Executioner 15280 | -5/Warlord | Destroyed 17 combat bots 15307 | -5/Warlord | Reached level 26 15420 | -5/Warlord | Spotted Executioner 15429 | -5/Warlord | Destroyed Executioner 15450 | -5/Warlord | Destroyed 9 combat bots 15457 | -5/Warlord | Build established: Scavenger-Gunner 15499 | -5/Warlord | Destroyed LI-GGL(K) 15500 | -5/Warlord | Attacked by Warlord forces 15532 | -5/Warlord | Identified exit to Proximity Caves 15543 | -5/Warlord | Spotted Striker 15546 | -5/Warlord | Destroyed Striker 15558 | -5/Warlord | Spotted B-86 Titan 15573 | -5/Warlord | Core integrity fell below 50% 15607 | -5/Warlord | Destroyed 26 combat bots 15619 | -5/Warlord | Destroyed B-86 Titan 15639 | -5/Warlord | Spotted Striker 15662 | -5/Warlord | Destroyed Striker 15688 | -5/Warlord | Spotted Executioner 15689 | -5/Warlord | Spotted Striker 15735 | -5/Warlord | Destroyed Executioner 15751 | -5/Warlord | Spotted Striker 15758 | -5/Warlord | Destroyed 9 combat bots 15799 | -5/Warlord | Destroyed Striker 15873 | -5/Warlord | Spotted Executioner 15877 | -5/Warlord | Destroyed Striker 15877 | -5/Warlord | Destroyed Executioner 15930 | -5/Warlord | Spotted Executioner 15943 | -5/Warlord | Destroyed Executioner 15981 | -5/Warlord | Core integrity fell below 20% 16001 | -5/Warlord | Destroyed 32 combat bots 16002 | -5/Warlord | Spotted Striker 16013 | -5/Warlord | Spotted Executioner 16022 | -5/Warlord | Spotted Striker 16046 | -5/Warlord | Destroyed by S-27 Virus with Autogun Last Messages --------------- 16023_ Penetrated by Slug. 16026_ Dropped Protomatter-34. 16032_ S-27 Virus destroyed. 16032_ Slug penetrates Reinforced Barrier. 16034_ System corrupted: Matter fused (-10). 16035_ Destroyed VTOL Module. 16035_ S-27 Virus destroyed. 16035_ Machine disabled. 16037_ S-43 Plague destroyed. 16037_ Switching to secondary target: S-27 Virus. 16040_ Slug penetrates Striker. 16041_ Imp. Particle Charger destroyed. 16041_ Knocked back. 16043_ Slug penetrates Reinforced Barrier. 16043_ Vortex Lab Terminal disabled. 16045_ Vortex Shotgun implodes. 16045_ Slug penetrates Striker. 16045_ P-80 Master destroyed. 16045_ Knocked back. Map ----- +----------------------------------------------------+ | "###### ### ##### !! | | " #### ### ##### ! [ | | #######""""""###### ### ##### [[ | | # =% #### ### ##### | | " =!%=[ #### ^ ### ################ | | /%!*! = ######+#+####### # = " ### | | %%%[ %% ###### # ##" | | [%=! [% " ### # ### | | *%=%* ###### # ### | | #=*[ # ############ # ##########% | | ### *% ######### ###+########"#=[ | | # = !%*%%[="*!"## # | | =%!/%%!%%*% | | # [![%=%%=""#"# | | !!=* ###### """"" | | * # ############# ####%% """"" | | ### ###################X# """"" | | ### ###### " | | #######+########## %% " | | ##### #########= *%! " | | #########/p###############+###+### "" | | #########=%############## # %% " | | ##### #########sKK!]%"""""""### # "" | | ##################***! % """"### # | | ##### #########"[% """"### # | | #########" @ !""" ### # "" | | #########" ### # " | | ##### #########"" ] ### # "" | | ######+###########"" """### # "" | | #?# ###"" """"### # " | | ### ###""""""" """########+### "" | | ### ###"""""""""""""######## ### | | ### ######################## ### | | ### ####################### | | ############+######################### | | ########?##############+#+####### | | + ########### #?### | | #########+#### ### ####?###### ##### | | ####??## ######## ##?######## ##### | | ###?###" #""#?#### ########### ##?##" | | #?#?###"" #X"###################### ! ] ###?## | | #####?#" "#?#######?###?####??## ! ] #####? | | ##?####"" "###?######?##?######?# ! ] ###?## | | ?##??###""""?#??#?#####?#?###?#?### ##??#? | | #?##???########?####?#?###???###?#############?#?? | | #########?#???#########??#???#?######?########???# | | ##?######?###??#??#?#?#??#######?#??###??###????## | | | | | | | +----------------------------------------------------+ Best States ------------- Heat Dissipation 129 Energy Generation 65 Energy Capacity 700 Matter Stores 700 Matter Capacity 700 Sight Range 18 Robot Scan Range 20 Terrain Scan Range 24 Terrain Scan Density 510 Additional Mass Support 16 Armor Coverage 675 Resistance: KI 5 Resistance: TH 15 Resistance: EX 5 Propulsion Shielding 33 Utility Shielding 33 Weapon Shielding 100 Weapon Cycling 30 Evasion (%) 63 Core Analysis 8 Armor Integrity Analysis 50 Particle Charging 35 Kinecelleration 50 Offensive Hacking 25 Defensive Hacking 15 Item Schematics ----------------- Com. Battery | -8/Materials | Extracted Shield Generator | -8/Materials | Extracted Plasma Rifle | -7/Factory | Hacked Combat Drone Bay | -7/Data Miner | Free Lgt. Regenerative Plating | -7/Data Miner | Free Cld. Cesium-ion Thruster | -7/Data Miner | Free Gravity Neutralizer | -7/Data Miner | Free Com. Ion Cannon | -7/Data Miner | Free Field Propulsion Drive | -7/Data Miner | Free Imp. Weapon Cycler | -7/Data Miner | Free KE Penetrator | -7/Data Miner | Free Angular Momentum Engine | -7/Data Miner | Free Imp. Dynamic Insulation System | -6/Zion | Archive Force Field | -6/Zion | Archive Adv. Actuator Array | -6/Zion | Archive Energy Well | -6/Zion | Archive Hyp. Gauss Cannon | -6/Zion | Archive Imp. Reaction Control System | -6/Zion | Archive Hvy. Treads | -6/Zion | Archive Imp. Hardlight Generator | -6/Zion | Archive Centrium Wheel | -6/Zion | Archive Hpw. Shock Rifle | -6/Zion | Archive Point Defense System | -6/Zion | Archive Adv. Melee Analysis Suite | -6/Zion | Archive Arm. Medium Treads | -6/Zion | Archive Imp. Medium Treads | -6/Zion | Archive Reaction Control System | -5/Factory | Z-intel Transmission Jammer | -5/Factory | Z-intel Hyp. Coil Gun | -5/Factory | Z-intel Arm. Huge Wheel | -5/Factory | Z-intel Imp. Component Analysis Suite | -5/Factory | Z-intel Antigrav System | -5/Factory | Z-intel Imp. Proton Missile Launcher | -5/Factory | Z-intel Variable Charge Gun | -5/Factory | Z-intel Weight Redist. System | -5/Factory | Z-intel Imp. Shock Absorption System | -5/Factory | Z-intel Gravmag Array | -5/Factory | Z-intel Imp. Melee Analysis Suite | -5/Factory | Z-intel Adv. Terrain Scanner | -5/Factory | Z-intel Imp. Particle Charger | -5/Factory | Z-intel Hrd. Medium Armor Plating | -5/Factory | Z-intel Hpw. Tractor Beam | -5/Factory | Z-intel Robot Schematics ------------------ L-41 Fighter | -7/Data Miner | Free H-66 Slayer | -7/Data Miner | Free I-36 Angel | -7/Data Miner | Free A-15 Conveyor | -7/Data Miner | Free Y-54 Guardian | -6/Zion | Archive T-07 Excavator | -6/Zion | Archive R-06 Scavenger | -6/Zion | Archive Fabricated ------------ Plasma Rifle | x2 | -7/Factory Plasma Rifle | x2 | -7/Factory M-22 Extractor | x1 | -6/Proximity Caves | Preloaded I-36 Angel | x1 | -6/Factory Repaired ---------- Nothing Studied --------- Plasma Rifle | -7/Factory | Hacked Hyp. Coil Gun | -5/Factory | Hacked Alien Tech Used ----------------- None Achievements -------------- None Challenges ------------ None RPGLIKE | -11 -10 -10 -10 -9 -8 -7 -7 -7 -7 -6 -6 -6 -6 -6 -5 -5 -5 -5 --------- Run | Yrd Mat Min Exi Min Mat Fac Low Low Dat Pro Fac Low Low Zio Pro Fac Upp War Levels Raised 25 | . 3 1 . 1 6 4 1 . . 2 1 . 1 . 1 2 . 2 XP Earned 41340 | 3000 5247 1435 139 1550 8371 6475 876 448 152 2533 2350 324 466 128 1492 3653 254 2447 XP Spent 40390 | 2970 4500 1100 . 800 7910 7855 270 1400 . . 3600 . 400 1100 . 5250 200 3035 Upgrades 74 | 10 6 1 . 1 20 19 3 2 . . 2 . 2 1 . 3 1 3 Power Slot 1 | . . . . . . . . 1 . . . . . . . . . . Propulsion Slot 4 | 1 . . . 1 . . . . . . . . . . . 1 . 1 Utility Slot 9 | 1 3 . . . 2 1 . . . . 1 . . . . 1 . . Weapon Slot 3 | 1 . . . . . 1 . . . . . . . 1 . . . . Core Integrity 12 | . . . . . 4 7 . . . . . . . . . . . 1 Heat Dissipation 13 | 4 . . . . 5 4 . . . . . . . . . . . . Energy Generation 2 | . . . . . 1 1 . . . . . . . . . . . . Mass Support 3 | . 2 1 . . . . . . . . . . . . . . . . Inventory Capacity 6 | 2 . . . . 1 . . . . . 1 . . . . 1 . 1 Sight Range 2 | . . . . . . . . . . . . . 2 . . . . . Terrain Scan Density 3 | . . . . . . . 3 . . . . . . . . . . . Ranged Accuracy 6 | 1 1 . . . 2 1 . 1 . . . . . . . . . . Hack Attack % 3 | . . . . . 1 2 . . . . . . . . . . . . Hack Defense % 1 | . . . . . 1 . . . . . . . . . . . . . KI Resistance % 1 | . . . . . 1 . . . . . . . . . . . . . TH Resistance % 1 | . . . . . 1 . . . . . . . . . . . . . EX Resistance % 1 | . . . . . 1 . . . . . . . . . . . . . KI Damage % 1 | . . . . . . . . . . . . . . . . . 1 . TH Damage % 2 | . . . . . . 2 . . . . . . . . . . . . Protomatter Created 9022 | . 392 139 . 100 787 433 357 271 . 682 928 160 407 . 149 1147 174 2896 Integrity Restored 15672 | . 749 252 . 229 1994 885 945 889 . 1427 923 339 849 . 190 1812 916 3273 Core 12062 | . 675 252 . 229 1888 885 945 454 . 915 757 339 483 . 177 1300 239 2524 Parts 3610 | . 74 . . . 106 . . 435 . 512 166 . 366 . 13 512 677 749 Protomatter Decayed 3191 | . 30 55 . 54 54 . . 81 . 125 864 64 126 . 84 590 38 1026 Game ------ Seed TeleporterMinesnifferKit Manual? 0 Play Time 03:23:03 Cumulative 470.2 hours Start 2025.12.08 @ 10:46:01 End 2025.12.08 @ 17:56:36 Sessions 3 Manual Loads 0 Difficulty Rogue Special Mode Winter2019/RPGLIKE Game No. 174 Rogue 20 Adventurer 154 Explorer 0 Win Type - Total 19 Types 4/3/3/3/2/1/0/1/1/1 Lore% 93 Gallery% 84 Achievement% 61 Wizard Run 0 Options --------- Layout 2 ASCII 0 Keyboard 0 Movement Numpad Keybinds 0 Fullscreen 2 Font 24/Smallcaps Map View 50x44 Zoom Use 0% Tactical HUD 1 Map Filters NONE Filters NONE Steam 1 RUN: e23296a6-fce2-49e4-982b-52d9d3159a7f